[Event "*** Titled Tuesday Blitz"]
[Site "Chess.com"]
[Date "2019.05.07"]
[Round "10"]
[White "bluejay1897"]
[Black "HouseOfDurin"]
[Result "1-0"]
[WhiteElo "2257"]
[BlackElo "1975"]
[TimeControl "180+2"]
[EndTime "15:25:48 PDT"]
[Termination "bluejay1897 won by resignation"]

1. Nf3 {[%clk 0:03:01.9]} 1... c5 {[%clk 0:03:00.7]} 2. g3 {[%clk 0:03:02.9]}
2... Nc6 {[%clk 0:03:02.1]} 3. Bg2 {[%clk 0:03:01.9]} 3... g6 {[%clk 0:03:03.5]}
4. c4 {[%clk 0:03:02.2]} 4... Bg7 {[%clk 0:03:04.8]} 5. Nc3 {[%clk 0:03:03.5]}
5... e5 {[%clk 0:03:05.7]} 6. d3 {[%clk 0:03:04.7]} 6... Nge7 {[%clk 0:03:07.2]}
7. h4 {[%clk 0:03:04.1]} 7... h6 {[%clk 0:03:07.7]} 8. Bd2 {[%clk 0:03:03.2]}
8... O-O {[%clk 0:02:59.1]} 9. Qc1 {[%clk 0:03:03.6]} 9... Kh7 {[%clk
0:02:59.9]} 10. h5 {[%clk 0:03:05]} 10... g5 {[%clk 0:02:39.9]} 11. Bxg5 {[%clk
0:03:05.7]} 11... hxg5 {[%clk 0:02:40.6]} 12. Nxg5+ {[%clk 0:03:07]} 12... Kh8
{[%clk 0:02:27.3]} 13. h6 {[%clk 0:03:00.8]} 13... Bf6 {[%clk 0:02:27.4]} 14.
Nge4 {[%clk 0:02:53.6]} 14... Ng6 {[%clk 0:02:04.5]} 15. Nxc5 {[%clk 0:02:37.3]}
15... d6 {[%clk 0:01:57.1]} 16. N5e4 {[%clk 0:02:37]} 16... Be6 {[%clk
0:01:53.2]} 17. Nxf6 {[%clk 0:02:34.9]} 17... Qxf6 {[%clk 0:01:55.1]} 18. Ne4
{[%clk 0:02:35.7]} 18... Qe7 {[%clk 0:01:52.9]} 19. Bf3 {[%clk 0:02:08.2]} 19...
f5 {[%clk 0:01:51.1]} 20. Ng5 {[%clk 0:02:05.9]} 20... f4 {[%clk 0:01:51.8]} 21.
Nxe6 {[%clk 0:01:59.4]} 21... Qxe6 {[%clk 0:01:53.7]} 22. Bd5 {[%clk 0:02:00.7]}
22... Qd7 {[%clk 0:00:57.8]} 23. Qc3 {[%clk 0:01:43.8]} 23... fxg3 {[%clk
0:00:56.5]} 24. fxg3 {[%clk 0:01:44.9]} 24... Nce7 {[%clk 0:00:48.1]} 25. Bf3
{[%clk 0:01:38.4]} 25... Rac8 {[%clk 0:00:27.9]} 26. Qb4 {[%clk 0:01:37.4]}
26... d5 {[%clk 0:00:23.8]} 27. cxd5 {[%clk 0:01:31.2]} 27... Nxd5 {[%clk
0:00:25.7]} 28. Qe4 {[%clk 0:01:32.2]} 28... Nde7 {[%clk 0:00:16]} 29. Bg4
{[%clk 0:01:22.9]} 29... Qd4 {[%clk 0:00:08.7]} 30. Qxd4 {[%clk 0:01:21.7]}
30... exd4 {[%clk 0:00:10.6]} 31. Bxc8 {[%clk 0:01:23]} 31... Rxc8 {[%clk
0:00:10.9]} 32. Kd2 {[%clk 0:01:24.6]} 32... Kh7 {[%clk 0:00:11.5]} 33. g4
{[%clk 0:01:25.5]} 33... Nd5 {[%clk 0:00:11]} 34. g5 {[%clk 0:01:23.8]} 34...
Ne3 {[%clk 0:00:11.8]} 35. Rac1 {[%clk 0:01:24.1]} 35... Rxc1 {[%clk 0:00:10.6]}
36. Rxc1 {[%clk 0:01:25.4]} 36... Nd5 {[%clk 0:00:10.5]} 37. Rc4 {[%clk
0:01:24.6]} 37... Ne5 {[%clk 0:00:03.9]} 38. Rxd4 {[%clk 0:01:24.6]} 38... Nb6
{[%clk 0:00:05]} 39. Re4 {[%clk 0:01:18.4]} 39... Nf7 {[%clk 0:00:06.3]} 40. Re7
{[%clk 0:01:17.4]} 40... Kg6 {[%clk 0:00:07.7]} 41. Rxb7 {[%clk 0:01:13.1]}
41... Nxg5 {[%clk 0:00:08.5]} 42. Rxa7 {[%clk 0:01:12.9]} 42... Nd5 {[%clk
0:00:08.9]} 43. e4 {[%clk 0:01:11.7]} 43... Nf6 {[%clk 0:00:08.8]} 44. Ke3
{[%clk 0:01:11.9]} 44... Ng4+ {[%clk 0:00:09.7]} 45. Kf4 {[%clk 0:01:08.5]}
45... Nxh6 {[%clk 0:00:11.6]} 46. Ra6+ {[%clk 0:01:09]} 46... Kh5 {[%clk
0:00:12.5]} 47. Ra5 {[%clk 0:01:05.9]} 47... Nf7 {[%clk 0:00:13.5]} 48. Rxg5+
{[%clk 0:01:01.1]} 48... Nxg5 {[%clk 0:00:15.4]} 49. a4 {[%clk 0:01:02.4]} 49...
Kg6 {[%clk 0:00:15.8]} 50. a5 {[%clk 0:01:03.1]} 50... Kf6 {[%clk 0:00:16.2]}
51. a6 {[%clk 0:01:03.5]} 51... Ne6+ {[%clk 0:00:18.1]} 52. Ke3 {[%clk
0:01:04.2]} 52... Nc7 {[%clk 0:00:20]} 53. a7 {[%clk 0:01:04.7]} 53... Ke6
{[%clk 0:00:21.9]} 54. d4 {[%clk 0:01:05.4]} 54... Kd6 {[%clk 0:00:23.1]} 55.
e5+ {[%clk 0:01:03.9]} 55... Kc6 {[%clk 0:00:23.2]} 56. Ke4 {[%clk 0:01:04.9]}
56... Kb7 {[%clk 0:00:24.4]} 57. d5 {[%clk 0:01:06.1]} 57... Kxa7 {[%clk
0:00:25.6]} 58. d6 {[%clk 0:01:07.6]} 58... Ne6 {[%clk 0:00:15.3]} 59. Kd5
{[%clk 0:01:04.9]} 59... Nf8 {[%clk 0:00:16.4]} 60. e6 {[%clk 0:01:05.4]} 60...
Kb7 {[%clk 0:00:17.8]} 61. e7 {[%clk 0:01:06.6]} 61... Nh7 {[%clk 0:00:19]} 62.
Ke5 {[%clk 0:01:02]} 1-0

[Event "*** Titled Tuesday Blitz"]
[Site "Chess.com"]
[Date "2019.05.07"]
[Round "10"]
[White "pedroholly22"]
[Black "Jenia84"]
[Result "1/2-1/2"]
[WhiteElo "2293"]
[BlackElo "2267"]
[TimeControl "180+2"]
[EndTime "15:25:55 PDT"]
[Termination "Game drawn by agreement"]

1. e4 {[%clk 0:02:59.8]} 1... e5 {[%clk 0:02:58.2]} 2. Nf3 {[%clk 0:02:59.5]}
2... Nc6 {[%clk 0:02:58.8]} 3. Bb5 {[%clk 0:02:59.5]} 3... Nf6 {[%clk
0:02:59.1]} 4. O-O {[%clk 0:02:59.5]} 4... Nxe4 {[%clk 0:02:59.2]} 5. d4 {[%clk
0:02:59.2]} 5... Nd6 {[%clk 0:02:59.6]} 6. dxe5 {[%clk 0:02:59.8]} 6... Nxb5
{[%clk 0:02:57.9]} 7. a4 {[%clk 0:03:00.2]} 7... Nbd4 {[%clk 0:02:57.8]} 8. Nxd4
{[%clk 0:03:00.2]} 8... Nxd4 {[%clk 0:02:57.6]} 9. Qxd4 {[%clk 0:03:02.1]} 9...
d6 {[%clk 0:02:55]} 10. Re1 {[%clk 0:02:43.8]} 10... dxe5 {[%clk 0:02:51.2]} 11.
Qxe5+ {[%clk 0:02:43]} 11... Be6 {[%clk 0:02:50.6]} 12. Qb5+ {[%clk 0:02:35.2]}
12... Qd7 {[%clk 0:02:34]} 13. Qxb7 {[%clk 0:02:34.8]} 13... Rd8 {[%clk
0:02:34.7]} 14. Bg5 {[%clk 0:02:30.8]} 14... Be7 {[%clk 0:02:06.5]} 15. Bxe7
{[%clk 0:02:29.5]} 15... Qxe7 {[%clk 0:02:07.3]} 16. Nc3 {[%clk 0:02:29.6]}
16... O-O {[%clk 0:02:06.4]} 17. Qxa7 {[%clk 0:02:29.8]} 17... Qb4 {[%clk
0:02:01]} 18. Qxc7 {[%clk 0:02:14.1]} 18... Qxb2 {[%clk 0:02:01]} 19. Nb5 {[%clk
0:02:05.4]} 19... Rc8 {[%clk 0:02:00.8]} 20. Qe5 {[%clk 0:02:04.9]} 20... Qxc2
{[%clk 0:01:52.5]} 21. Nd4 {[%clk 0:02:04.4]} 21... Qd2 {[%clk 0:01:39.8]} 22.
Nxe6 {[%clk 0:02:04.2]} 22... fxe6 {[%clk 0:01:40.9]} 23. Qxe6+ {[%clk
0:02:03.1]} 23... Kh8 {[%clk 0:01:41.9]} 24. Qe3 {[%clk 0:02:01.8]} 24... Qb2
{[%clk 0:01:39.7]} 25. a5 {[%clk 0:01:47.4]} 25... Rc2 {[%clk 0:01:39.5]} 26.
Qb6 {[%clk 0:01:30.6]} 26... Rcxf2 {[%clk 0:01:25.5]} 27. Qxb2 {[%clk
0:01:28.8]} 27... Rxb2 {[%clk 0:01:26.1]} 28. a6 {[%clk 0:01:24.3]} 28... Rbb8
{[%clk 0:01:26.6]} 29. Re3 {[%clk 0:01:21]} 29... h5 {[%clk 0:01:23.6]} 30. a7
{[%clk 0:01:20.6]} 30... Ra8 {[%clk 0:01:23.9]} 31. Rea3 {[%clk 0:01:21]} 31...
Kh7 {[%clk 0:01:24]} 32. h3 {[%clk 0:01:21.4]} 32... Kh6 {[%clk 0:01:24.6]} 33.
Ra6+ {[%clk 0:01:20.2]} 33... g6 {[%clk 0:01:25.3]} 34. Kh2 {[%clk 0:01:11.4]}
34... Rf7 {[%clk 0:01:24.8]} 35. Kg3 {[%clk 0:01:12.1]} 35... Rb7 {[%clk
0:01:25]} 36. Kf4 {[%clk 0:01:12.1]} 36... Re7 {[%clk 0:01:19.8]} 37. R1a2
{[%clk 0:01:11.5]} 37... Rf8+ {[%clk 0:01:15.8]} 38. Kg3 {[%clk 0:01:11.8]}
38... Ra8 {[%clk 0:01:16.3]} 39. h4 {[%clk 0:01:05.2]} 39... Rf7 {[%clk
0:01:14.4]} 40. Kh3 {[%clk 0:01:05.7]} 40... Kh7 {[%clk 0:01:12.7]} 41. R2a3
{[%clk 0:01:06.1]} 41... Re7 {[%clk 0:00:56.4]} 42. R3a4 {[%clk 0:00:59.1]}
42... Rf7 {[%clk 0:00:56.2]} 43. g3 {[%clk 0:00:57.5]} 43... Re7 {[%clk
0:00:56.1]} 44. Ra3 {[%clk 0:00:56.6]} 44... Rf7 {[%clk 0:00:56.6]} 45. R6a4
{[%clk 0:00:56.8]} 45... Re7 {[%clk 0:00:57.3]} 46. g4 {[%clk 0:00:57.1]} 46...
hxg4+ {[%clk 0:00:55]} 47. Kxg4 {[%clk 0:00:59]} 47... Rf7 {[%clk 0:00:55.5]}
48. Ra5 {[%clk 0:00:58]} 48... Re7 {[%clk 0:00:55.9]} 49. R3a4 {[%clk
0:00:58.7]} 49... Rd7 {[%clk 0:00:55]} 50. Kg5 {[%clk 0:00:59.1]} 50... Rf7
{[%clk 0:00:52]} 51. Ra3 {[%clk 0:00:58.1]} 51... Re7 {[%clk 0:00:52.4]} 52. Ra6
{[%clk 0:00:58.2]} 52... Re5+ {[%clk 0:00:50.6]} 53. Kf6 {[%clk 0:00:58.5]}
53... Rf5+ {[%clk 0:00:44.9]} 54. Ke6 {[%clk 0:00:58.6]} 54... Rff8 {[%clk
0:00:35.6]} 55. Rd6 {[%clk 0:00:56.4]} 55... Kh6 {[%clk 0:00:29.7]} 56. Ra5
{[%clk 0:00:52.1]} 56... Rfe8+ {[%clk 0:00:29]} 57. Kd7 {[%clk 0:00:51.8]} 57...
Rf8 {[%clk 0:00:27]} 58. h5 {[%clk 0:00:49.4]} 58... Rf7+ {[%clk 0:00:25]} 59.
Ke6 {[%clk 0:00:45.4]} 59... Rfxa7 {[%clk 0:00:24.8]} 60. Rxa7 {[%clk
0:00:43.9]} 60... Rxa7 {[%clk 0:00:25.8]} 61. hxg6 {[%clk 0:00:45.8]} 1/2-1/2

[Event "*** Titled Tuesday Blitz"]
[Site "Chess.com"]
[Date "2019.05.07"]
[Round "10"]
[White "VeraNebolsina"]
[Black "JonahWillow"]
[Result "1/2-1/2"]
[WhiteElo "2380"]
[BlackElo "2718"]
[TimeControl "180+2"]
[EndTime "15:25:57 PDT"]
[Termination "Game drawn by agreement"]

1. e4 {[%clk 0:03:01.9]} 1... c5 {[%clk 0:03:00.6]} 2. Nc3 {[%clk 0:03:02.1]}
2... Nc6 {[%clk 0:03:01.8]} 3. Bb5 {[%clk 0:03:01.2]} 3... Nd4 {[%clk
0:03:02.8]} 4. Nf3 {[%clk 0:03:01.5]} 4... e6 {[%clk 0:03:02.1]} 5. O-O {[%clk
0:03:00.8]} 5... a6 {[%clk 0:03:03.4]} 6. Bd3 {[%clk 0:03:00.9]} 6... Nc6 {[%clk
0:03:04.2]} 7. b3 {[%clk 0:02:31.9]} 7... d5 {[%clk 0:02:56.8]} 8. exd5 {[%clk
0:02:29.5]} 8... exd5 {[%clk 0:02:58.7]} 9. Re1+ {[%clk 0:02:29.7]} 9... Be7
{[%clk 0:02:57.7]} 10. Ne2 {[%clk 0:02:15.9]} 10... Nf6 {[%clk 0:02:40.2]} 11.
Ng3 {[%clk 0:02:16.7]} 11... O-O {[%clk 0:02:39.3]} 12. Nf5 {[%clk 0:02:17.3]}
12... Bxf5 {[%clk 0:02:36]} 13. Bxf5 {[%clk 0:02:18.2]} 13... Re8 {[%clk
0:02:34.7]} 14. c3 {[%clk 0:02:12.8]} 14... g6 {[%clk 0:02:29.4]} 15. Bh3 {[%clk
0:02:10.9]} 15... d4 {[%clk 0:02:20.7]} 16. c4 {[%clk 0:02:08.5]} 16... Nh5
{[%clk 0:02:15.6]} 17. d3 {[%clk 0:02:08]} 17... Bf6 {[%clk 0:02:13]} 18. Bd2
{[%clk 0:02:04.8]} 18... Qc7 {[%clk 0:02:08.4]} 19. g3 {[%clk 0:01:58.7]} 19...
Ng7 {[%clk 0:02:02.9]} 20. a3 {[%clk 0:01:52.8]} 20... a5 {[%clk 0:01:45.7]} 21.
Bg2 {[%clk 0:01:47.1]} 21... Rxe1+ {[%clk 0:00:49.6]} 22. Qxe1 {[%clk 0:01:43]}
22... Re8 {[%clk 0:00:51.1]} 23. Qd1 {[%clk 0:01:42]} 23... Nf5 {[%clk
0:00:44.3]} 24. Qc2 {[%clk 0:01:28]} 24... Re2 {[%clk 0:00:40.8]} 25. Re1 {[%clk
0:01:25.1]} 25... Qe7 {[%clk 0:00:36.6]} 26. Qd1 {[%clk 0:01:23.7]} 26... Rxe1+
{[%clk 0:00:35.2]} 27. Qxe1 {[%clk 0:01:24.6]} 27... Qxe1+ {[%clk 0:00:35.2]}
28. Nxe1 {[%clk 0:01:25]} 28... Bd8 {[%clk 0:00:33.1]} 29. Nc2 {[%clk
0:01:22.9]} 29... Kf8 {[%clk 0:00:30.1]} 30. Kf1 {[%clk 0:01:22.7]} 30... Ke8
{[%clk 0:00:28.5]} 31. Ke2 {[%clk 0:01:20.9]} 31... Kd7 {[%clk 0:00:28.5]} 32.
b4 {[%clk 0:01:20.1]} 32... axb4 {[%clk 0:00:26.1]} 33. axb4 {[%clk 0:01:21]}
33... b6 {[%clk 0:00:27.8]} 34. b5 {[%clk 0:01:11.9]} 34... Nce7 {[%clk
0:00:28]} 35. Ne1 {[%clk 0:01:09.6]} 35... Nd6 {[%clk 0:00:25.4]} 36. Nf3 {[%clk
0:00:59.8]} 36... f6 {[%clk 0:00:23.1]} 37. h4 {[%clk 0:00:58.6]} 37... Ke6
{[%clk 0:00:21.4]} 38. Bh3+ {[%clk 0:00:57.3]} 38... Nef5 {[%clk 0:00:22.7]} 39.
Bf4 {[%clk 0:00:55.9]} 39... Bc7 {[%clk 0:00:20.4]} 40. Nd2 {[%clk 0:00:54.4]}
40... Ke7 {[%clk 0:00:19]} 41. Bxf5 {[%clk 0:00:53.9]} 41... gxf5 {[%clk
0:00:17.8]} 42. h5 {[%clk 0:00:52.7]} 42... Ke6 {[%clk 0:00:15.9]} 43. Bxd6
{[%clk 0:00:47.2]} 43... Bxd6 {[%clk 0:00:14.8]} 44. f4 {[%clk 0:00:47.7]} 44...
Be7 {[%clk 0:00:14.3]} 45. Nf3 {[%clk 0:00:48.4]} 45... Bf8 {[%clk 0:00:15.9]}
46. Nh4 {[%clk 0:00:49.1]} 46... Bd6 {[%clk 0:00:15.9]} 47. Kf3 {[%clk
0:00:49.6]} 47... Be7 {[%clk 0:00:17]} 48. g4 {[%clk 0:00:49.8]} 48... fxg4+
{[%clk 0:00:17]} 49. Kxg4 {[%clk 0:00:50.3]} 49... Bf8 {[%clk 0:00:18.6]} 50.
Nf5 {[%clk 0:00:49.9]} 50... Bd6 {[%clk 0:00:18.5]} 51. Nxd6 {[%clk 0:00:19.1]}
51... Kxd6 {[%clk 0:00:20.4]} 52. Kf5 {[%clk 0:00:20.3]} 52... Ke7 {[%clk
0:00:21.4]} 53. h6 {[%clk 0:00:21.6]} 53... Kf7 {[%clk 0:00:21.1]} 54. Ke4
{[%clk 0:00:19.9]} 54... Ke6 {[%clk 0:00:17.1]} 55. f5+ {[%clk 0:00:20.4]} 55...
Kd6 {[%clk 0:00:17]} 56. Kf4 {[%clk 0:00:21.5]} 1/2-1/2

[Event "*** Titled Tuesday Blitz"]
[Site "Chess.com"]
[Date "2019.05.07"]
[Round "10"]
[White "Siemba"]
[Black "MasterKroket"]
[Result "1-0"]
[WhiteElo "2075"]
[BlackElo "2325"]
[TimeControl "180+2"]
[EndTime "15:25:59 PDT"]
[Termination "Siemba won by resignation"]

1. e4 {[%clk 0:03:01.9]} 1... c5 {[%clk 0:03:00.7]} 2. Nf3 {[%clk 0:03:02.2]}
2... e6 {[%clk 0:03:02.1]} 3. d4 {[%clk 0:03:02.1]} 3... cxd4 {[%clk 0:03:04]}
4. Nxd4 {[%clk 0:03:03.3]} 4... Nc6 {[%clk 0:03:05.6]} 5. Nc3 {[%clk 0:03:03.9]}
5... Qc7 {[%clk 0:03:06.7]} 6. Be3 {[%clk 0:03:04.3]} 6... a6 {[%clk 0:03:07.9]}
7. Qd2 {[%clk 0:03:05.5]} 7... Nf6 {[%clk 0:03:08.3]} 8. f4 {[%clk 0:03:07]}
8... b5 {[%clk 0:03:06.2]} 9. e5 {[%clk 0:03:03.1]} 9... b4 {[%clk 0:03:07.2]}
10. exf6 {[%clk 0:03:00.3]} 10... bxc3 {[%clk 0:03:08.1]} 11. Qxc3 {[%clk
0:03:02.2]} 11... gxf6 {[%clk 0:03:05.8]} 12. O-O-O {[%clk 0:02:49.8]} 12... Bb4
{[%clk 0:02:38.1]} 13. Qc4 {[%clk 0:02:41.2]} 13... a5 {[%clk 0:02:33.8]} 14.
Nxc6 {[%clk 0:02:32.8]} 14... dxc6 {[%clk 0:02:30.2]} 15. Qd4 {[%clk 0:02:20.6]}
15... Be7 {[%clk 0:02:31.1]} 16. Bc4 {[%clk 0:02:02.9]} 16... c5 {[%clk
0:02:29.2]} 17. Bb5+ {[%clk 0:02:00]} 17... Kf8 {[%clk 0:02:30.3]} 18. Qd3
{[%clk 0:01:57.7]} 18... f5 {[%clk 0:02:11.2]} 19. g4 {[%clk 0:01:45.8]} 19...
Bb7 {[%clk 0:02:05.9]} 20. gxf5 {[%clk 0:01:41]} 20... Bxh1 {[%clk 0:02:04.1]}
21. Rxh1 {[%clk 0:01:33.8]} 21... Bf6 {[%clk 0:01:57.7]} 22. fxe6 {[%clk
0:01:23.6]} 22... fxe6 {[%clk 0:01:54.6]} 23. Qe4 {[%clk 0:01:21]} 23... Qc8
{[%clk 0:01:39.1]} 24. Bxc5+ {[%clk 0:00:54.3]} 24... Qxc5 {[%clk 0:01:34.3]}
25. Qxa8+ {[%clk 0:00:54.2]} 25... Kf7 {[%clk 0:01:34.1]} 26. Qb7+ {[%clk
0:00:50.2]} 26... Kg6 {[%clk 0:01:29.5]} 27. Bd3+ {[%clk 0:00:49.6]} 27... Kh6
{[%clk 0:01:28.7]} 28. Re1 {[%clk 0:00:38.9]} 28... Qf2 {[%clk 0:01:13.2]} 29.
Qe4 {[%clk 0:00:27.4]} 29... Qb6 {[%clk 0:00:38.5]} 30. c3 {[%clk 0:00:24.5]}
30... Qd6 {[%clk 0:00:18.9]} 31. Qxe6 {[%clk 0:00:10.3]} 31... Qxf4+ {[%clk
0:00:17.8]} 32. Kc2 {[%clk 0:00:11.4]} 32... Rd8 {[%clk 0:00:12.5]} 33. Qh3+
{[%clk 0:00:09.2]} 33... Kg7 {[%clk 0:00:13.1]} 34. Qxh7+ {[%clk 0:00:09.3]}
34... Kf8 {[%clk 0:00:14.7]} 35. Qe4 {[%clk 0:00:07.6]} 35... Qxh2+ {[%clk
0:00:12.9]} 36. Re2 {[%clk 0:00:08.5]} 36... Qh5 {[%clk 0:00:13.3]} 37. Rf2
{[%clk 0:00:09.1]} 37... Kg7 {[%clk 0:00:13.8]} 38. Qb7+ {[%clk 0:00:06.6]}
38... Kg8 {[%clk 0:00:09.5]} 39. Rxf6 {[%clk 0:00:07.7]} 39... Qh2+ {[%clk
0:00:10.5]} 40. Kb3 {[%clk 0:00:07.4]} 40... Rb8 {[%clk 0:00:10.9]} 41. Bc4+
{[%clk 0:00:07.4]} 41... Kh8 {[%clk 0:00:11]} 42. Rh6+ {[%clk 0:00:08]} 42...
Qxh6 {[%clk 0:00:09.5]} 43. Qxb8+ {[%clk 0:00:09.9]} 43... Kg7 {[%clk
0:00:11.3]} 44. Qc7+ {[%clk 0:00:10.3]} 44... Kf8 {[%clk 0:00:12.8]} 45. Qxa5
{[%clk 0:00:11.7]} 45... Qe3 {[%clk 0:00:11.5]} 46. Qb4+ {[%clk 0:00:13.6]}
46... Kg7 {[%clk 0:00:12.3]} 47. a4 {[%clk 0:00:15.5]} 47... Qd2 {[%clk
0:00:12]} 48. Bd3 {[%clk 0:00:13.6]} 48... Qd1+ {[%clk 0:00:12]} 49. Bc2 {[%clk
0:00:14.1]} 49... Qd5+ {[%clk 0:00:11.8]} 50. Qc4 {[%clk 0:00:15]} 50... Qb7+
{[%clk 0:00:13.4]} 51. Ka3 {[%clk 0:00:15.8]} 51... Qe7+ {[%clk 0:00:15]} 52. b4
{[%clk 0:00:17.4]} 52... Qe1 {[%clk 0:00:15.9]} 53. Qd4+ {[%clk 0:00:18.8]}
53... Kf8 {[%clk 0:00:16.8]} 54. Kb2 {[%clk 0:00:19.2]} 54... Qf1 {[%clk
0:00:13.3]} 55. a5 {[%clk 0:00:21.1]} 55... Qb5 {[%clk 0:00:13.5]} 56. Qc5+
{[%clk 0:00:22.7]} 1-0

[Event "*** Titled Tuesday Blitz"]
[Site "Chess.com"]
[Date "2019.05.07"]
[Round "10"]
[White "Jospem"]
[Black "LiamVrolijk"]
[Result "1-0"]
[WhiteElo "2886"]
[BlackElo "2522"]
[TimeControl "180+2"]
[EndTime "15:26:05 PDT"]
[Termination "Jospem won by resignation"]

1. a3 {[%clk 0:03:01.9]} 1... d5 {[%clk 0:02:58.4]} 2. h3 {[%clk 0:03:02.9]}
2... g6 {[%clk 0:02:58.1]} 3. g3 {[%clk 0:03:04.8]} 3... Bg7 {[%clk 0:02:59.2]}
4. Bg2 {[%clk 0:03:06.7]} 4... Nf6 {[%clk 0:03:00.6]} 5. d3 {[%clk 0:03:08.6]}
5... O-O {[%clk 0:03:01.9]} 6. Nd2 {[%clk 0:03:10.4]} 6... e5 {[%clk 0:03:00.2]}
7. e4 {[%clk 0:03:11.7]} 7... dxe4 {[%clk 0:03:00.4]} 8. dxe4 {[%clk 0:03:12.6]}
8... a5 {[%clk 0:03:01.3]} 9. Ngf3 {[%clk 0:03:12.4]} 9... Nc6 {[%clk
0:02:59.7]} 10. O-O {[%clk 0:03:13.2]} 10... h6 {[%clk 0:03:00.1]} 11. a4 {[%clk
0:03:12.8]} 11... b6 {[%clk 0:02:58.2]} 12. Re1 {[%clk 0:03:11.8]} 12... Qe7
{[%clk 0:02:58.3]} 13. c3 {[%clk 0:03:12.5]} 13... Ba6 {[%clk 0:02:57.3]} 14.
Qc2 {[%clk 0:03:13.3]} 14... Rad8 {[%clk 0:02:55.3]} 15. Bf1 {[%clk 0:03:14.1]}
15... Bxf1 {[%clk 0:02:55]} 16. Kxf1 {[%clk 0:03:15.6]} 16... Nd7 {[%clk
0:02:56.5]} 17. b3 {[%clk 0:03:13.6]} 17... Qe6 {[%clk 0:02:55]} 18. Kg2 {[%clk
0:03:14.3]} 18... Rfe8 {[%clk 0:02:55.6]} 19. Ba3 {[%clk 0:03:12.5]} 19... Bf8
{[%clk 0:02:56.4]} 20. Bxf8 {[%clk 0:03:13]} 20... Kxf8 {[%clk 0:02:58.3]} 21.
Re3 {[%clk 0:03:04.8]} 21... Kg7 {[%clk 0:02:56.5]} 22. Rb1 {[%clk 0:03:05.4]}
22... Qe7 {[%clk 0:02:46.1]} 23. Nc4 {[%clk 0:02:58.5]} 23... Nc5 {[%clk
0:02:44.2]} 24. h4 {[%clk 0:02:42.7]} 24... h5 {[%clk 0:02:32.5]} 25. Qe2 {[%clk
0:02:40.7]} 25... Nb7 {[%clk 0:02:29.7]} 26. Nfd2 {[%clk 0:02:15.7]} 26... Qe6
{[%clk 0:02:21]} 27. Rf3 {[%clk 0:02:12.6]} 27... Rd7 {[%clk 0:02:20.4]} 28. Ne3
{[%clk 0:02:08.2]} 28... Ne7 {[%clk 0:02:13.3]} 29. Nec4 {[%clk 0:01:58]} 29...
Red8 {[%clk 0:02:09.9]} 30. Re3 {[%clk 0:01:51]} 30... Nc5 {[%clk 0:02:10.7]}
31. Nf3 {[%clk 0:01:52.3]} 31... f6 {[%clk 0:02:07.9]} 32. Ne1 {[%clk
0:01:47.8]} 32... Qc6 {[%clk 0:02:05.3]} 33. Nf3 {[%clk 0:01:43.2]} 33... Nc8
{[%clk 0:02:00.2]} 34. Ncxe5 {[%clk 0:01:31.4]} 34... fxe5 {[%clk 0:01:57.9]}
35. Nxe5 {[%clk 0:01:33.3]} 35... Qe6 {[%clk 0:01:52.8]} 36. Nxd7 {[%clk
0:01:33.7]} 36... Rxd7 {[%clk 0:01:54.7]} 37. b4 {[%clk 0:01:33.9]} 37... Nb7
{[%clk 0:01:42]} 38. Rd1 {[%clk 0:01:13]} 38... Rf7 {[%clk 0:01:43.8]} 39. Qd3
{[%clk 0:00:59.6]} 39... Ncd6 {[%clk 0:01:42.6]} 40. Qd5 {[%clk 0:00:50]} 40...
Qxd5 {[%clk 0:01:26.6]} 41. Rxd5 {[%clk 0:00:51.9]} 41... Nc4 {[%clk 0:01:22.4]}
42. Re2 {[%clk 0:00:52.1]} 42... Re7 {[%clk 0:01:20]} 43. f3 {[%clk 0:00:43.7]}
43... Nbd6 {[%clk 0:01:15.2]} 44. Rd4 {[%clk 0:00:41.8]} 44... Ne5 {[%clk
0:01:07.1]} 45. bxa5 {[%clk 0:00:39.2]} 45... Nc6 {[%clk 0:01:07.8]} 46. Rxd6
{[%clk 0:00:25.7]} 46... cxd6 {[%clk 0:01:09.7]} 47. axb6 {[%clk 0:00:27.6]}
47... Rb7 {[%clk 0:01:10]} 48. Rb2 {[%clk 0:00:28.6]} 48... Rb8 {[%clk
0:00:57.6]} 49. Rb5 {[%clk 0:00:27.5]} 49... Kf6 {[%clk 0:00:39.9]} 50. a5
{[%clk 0:00:25.3]} 50... Ra8 {[%clk 0:00:41.1]} 51. b7 {[%clk 0:00:23]} 51...
Rb8 {[%clk 0:00:41.9]} 52. a6 {[%clk 0:00:23.8]} 52... Ke6 {[%clk 0:00:41.1]}
53. Kf2 {[%clk 0:00:21.2]} 53... Kd7 {[%clk 0:00:41.5]} 54. f4 {[%clk
0:00:21.6]} 54... Kc7 {[%clk 0:00:41.7]} 55. Rg5 {[%clk 0:00:20.2]} 55... Re8
{[%clk 0:00:35.7]} 56. Kf3 {[%clk 0:00:19]} 56... Ne7 {[%clk 0:00:36.7]} 57. Rb5
{[%clk 0:00:19.7]} 57... Nc6 {[%clk 0:00:37.8]} 58. Rg5 {[%clk 0:00:17.1]} 58...
Re6 {[%clk 0:00:37.4]} 59. f5 {[%clk 0:00:17.2]} 59... gxf5 {[%clk 0:00:38.2]}
60. exf5 {[%clk 0:00:19.1]} 60... Re5 {[%clk 0:00:36.4]} 61. Rxh5 {[%clk
0:00:19.2]} 61... Ra5 {[%clk 0:00:37.7]} 62. Rh7+ {[%clk 0:00:20.2]} 62... Kb6
{[%clk 0:00:38.7]} 63. b8=Q+ {[%clk 0:00:19.2]} 63... Nxb8 {[%clk 0:00:39.3]}
64. Rb7+ {[%clk 0:00:20.5]} 64... Kxa6 {[%clk 0:00:39.8]} 65. Rxb8 {[%clk
0:00:22.4]} 65... Rxf5+ {[%clk 0:00:41.7]} 66. Kg4 {[%clk 0:00:23.1]} 66... Rc5
{[%clk 0:00:43.6]} 67. Rb3 {[%clk 0:00:24.1]} 1-0